[Event "Titled Tuesday Blitz October 31 Early 2023"]
[White "Mikaelyan, Arman"]
[Black "Szpar, Milosz"]
[WhiteFideId "13304852"]
[BlackFideId "1184989"]
[WhiteElo "2912"]
[BlackElo "2716"]
[Result "1/2-1/2"]
[Round "5"]
[TimeControl "180+1"]
[Date "2023.10.31"]
[WhiteClock "0:00:07"]
[BlackClock "0:00:09"]
[Board "21"]

1. d4 {[%clk 0:03:00]}  d5 {[%clk 0:02:58]} 2. Nf3 {[%clk 0:03:00]}  Nf6 {[%clk 0:02:55]} 3. c4 {[%clk 0:03:01]}  e6 {[%clk 0:02:55]} 4. Nc3 {[%clk 0:03:01]}  dxc4 {[%clk 0:02:54]} 5. e4 {[%clk 0:02:56]}  b5 {[%clk 0:02:51]} 6. e5 {[%clk 0:02:56]}  Nd5 {[%clk 0:02:51]} 7. Nxb5 {[%clk 0:02:56]}  Nb6 {[%clk 0:02:52]} 8. Be2 {[%clk 0:02:56]}  Nc6 {[%clk 0:02:52]} 9. O-O {[%clk 0:02:48]}  Be7 {[%clk 0:02:52]} 10. a3 {[%clk 0:02:45]}  O-O {[%clk 0:02:50]} 11. Be3 {[%clk 0:02:44]}  Rb8 {[%clk 0:02:47]} 12. Rc1 {[%clk 0:02:40]}  Na5 {[%clk 0:02:44]} 13. Nxa7 {[%clk 0:02:16]}  Bd7 {[%clk 0:02:43]} 14. d5 {[%clk 0:02:01]}  Nxd5 {[%clk 0:02:40]} 15. Bd2 {[%clk 0:01:51]}  c5 {[%clk 0:02:30]} 16. a4 {[%clk 0:01:16]}  Nb3 {[%clk 0:01:56]} 17. Rxc4 {[%clk 0:01:14]}  Nxd2 {[%clk 0:01:51]} 18. Qxd2 {[%clk 0:01:14]}  Nb6 {[%clk 0:01:51]} 19. Rg4 {[%clk 0:01:11]}  Nxa4 {[%clk 0:01:36]} 20. Qh6 {[%clk 0:01:11]}  g6 {[%clk 0:01:35]} 21. Rd1 {[%clk 0:01:11]}  Qc7 {[%clk 0:01:22]} 22. Nb5 {[%clk 0:00:31]}  Rxb5 {[%clk 0:01:22]} 23. Rxa4 {[%clk 0:00:22]}  Rxb2 {[%clk 0:01:22]} 24. Re4 {[%clk 0:00:20]}  Qb7 {[%clk 0:01:18]} 25. Re3 {[%clk 0:00:18]}  Ba4 {[%clk 0:01:12]} 26. Rf1 {[%clk 0:00:17]}  Rb1 {[%clk 0:01:06]} 27. h4 {[%clk 0:00:17]}  Rxf1+ {[%clk 0:00:58]} 28. Bxf1 {[%clk 0:00:17]}  Rd8 {[%clk 0:00:25]} 29. Ng5 {[%clk 0:00:18]}  Bxg5 {[%clk 0:00:25]} 30. hxg5 {[%clk 0:00:18]}  Rd1 {[%clk 0:00:15]} 31. Rh3 {[%clk 0:00:19]}  Rxf1+ {[%clk 0:00:12]} 32. Kxf1 {[%clk 0:00:19]}  Qb1+ {[%clk 0:00:12]} 33. Ke2 {[%clk 0:00:20]}  Qd1+ {[%clk 0:00:11]} 34. Ke3 {[%clk 0:00:20]}  Qe1+ {[%clk 0:00:05]} 35. Kf3 {[%clk 0:00:19]}  Bc6+ {[%clk 0:00:05]} 36. Kg3 {[%clk 0:00:19]}  Qxe5+ {[%clk 0:00:05]} 37. f4 {[%clk 0:00:18]}  Qe3+ {[%clk 0:00:05]} 38. Kh2 {[%clk 0:00:16]}  Qxf4+ {[%clk 0:00:06]} 39. Kg1 {[%clk 0:00:17]}  Qc1+ {[%clk 0:00:06]} 40. Kh2 {[%clk 0:00:17]}  Qf4+ {[%clk 0:00:06]} 41. Kg1 {[%clk 0:00:17]}  Qd4+ {[%clk 0:00:06]} 42. Kh2 {[%clk 0:00:17]}  Qe5+ {[%clk 0:00:06]} 43. Kg1 {[%clk 0:00:16]}  Qa1+ {[%clk 0:00:06]} 44. Kh2 {[%clk 0:00:17]}  Qg7 {[%clk 0:00:07]} 45. Qxg7+ {[%clk 0:00:15]}  Kxg7 {[%clk 0:00:07]} 46. Rc3 {[%clk 0:00:16]}  h6 {[%clk 0:00:07]} 47. Rxc5 {[%clk 0:00:17]}  Bd5 {[%clk 0:00:07]} 48. gxh6+ {[%clk 0:00:16]}  Kxh6 {[%clk 0:00:08]} 49. g4 {[%clk 0:00:15]}  Kg5 {[%clk 0:00:08]} 50. Kg3 {[%clk 0:00:15]}  f5 {[%clk 0:00:08]} 51. gxf5 {[%clk 0:00:16]}  gxf5 {[%clk 0:00:09]} 52. Rc8 {[%clk 0:00:15]}  f4+ {[%clk 0:00:10]} 53. Kf2 {[%clk 0:00:15]}  Kf5 {[%clk 0:00:10]} 54. Rf8+ {[%clk 0:00:14]}  Ke4 {[%clk 0:00:10]} 55. Rb8 {[%clk 0:00:10]}  Kd4 {[%clk 0:00:09]} 56. Rb4+ {[%clk 0:00:10]}  Bc4 {[%clk 0:00:09]} 57. Rb8 {[%clk 0:00:08]}  e5 {[%clk 0:00:09]} 58. Rd8+ {[%clk 0:00:08]}  Bd5 {[%clk 0:00:09]} 59. Rf8 {[%clk 0:00:09]}  Ke4 {[%clk 0:00:09]} 60. Rf6 {[%clk 0:00:09]}  Bc4 {[%clk 0:00:08]} 61. Rf8 {[%clk 0:00:09]}  Kd4 {[%clk 0:00:08]} 62. Rf6 {[%clk 0:00:09]}  Kd5 {[%clk 0:00:09]} 63. Kf3 {[%clk 0:00:07]}  Kd4 {[%clk 0:00:09]} 64. Rxf4+ {[%clk 0:00:07]}  exf4 {[%clk 0:00:09]} 65. Kxf4 {[%clk 0:00:07]} 1/2-1/2


[Site "https://www.chess.com"]

[Event "Titled Tuesday Blitz October 31 Early 2023"]
[White "Erdogmus, Yagiz Kaan"]
[Black "Nagare Kaivalya Sandip"]
[WhiteFideId "44599790"]
[BlackFideId "25957929"]
[WhiteElo "2906"]
[BlackElo "2700"]
[Result "1-0"]
[Round "5"]
[TimeControl "180+1"]
[Date "2023.10.31"]
[WhiteClock "0:01:47"]
[BlackClock "0:00:33"]
[Board "23"]

1. d4 {[%clk 0:03:00]}  Nf6 {[%clk 0:02:56]} 2. c4 {[%clk 0:03:00]}  g6 {[%clk 0:02:56]} 3. Nc3 {[%clk 0:02:59]}  Bg7 {[%clk 0:02:56]} 4. e4 {[%clk 0:02:55]}  d6 {[%clk 0:02:56]} 5. g3 {[%clk 0:02:55]}  O-O {[%clk 0:02:57]} 6. Bg2 {[%clk 0:02:55]}  Nc6 {[%clk 0:02:53]} 7. Nge2 {[%clk 0:02:54]}  e5 {[%clk 0:02:53]} 8. d5 {[%clk 0:02:50]}  Nd4 {[%clk 0:02:48]} 9. O-O {[%clk 0:02:49]}  Re8 {[%clk 0:02:44]} 10. Be3 {[%clk 0:02:35]}  Nxe2+ {[%clk 0:02:35]} 11. Qxe2 {[%clk 0:02:36]}  Ng4 {[%clk 0:02:34]} 12. Bd2 {[%clk 0:02:34]}  h5 {[%clk 0:02:34]} 13. h3 {[%clk 0:02:26]}  Nf6 {[%clk 0:02:33]} 14. Bg5 {[%clk 0:02:25]}  Qd7 {[%clk 0:02:32]} 15. b4 {[%clk 0:02:23]}  Nh7 {[%clk 0:02:31]} 16. Bd2 {[%clk 0:02:19]}  h4 {[%clk 0:02:31]} 17. gxh4 {[%clk 0:02:16]}  Qe7 {[%clk 0:02:29]} 18. h5 {[%clk 0:02:15]}  Qh4 {[%clk 0:02:29]} 19. hxg6 {[%clk 0:02:15]}  fxg6 {[%clk 0:02:30]} 20. Qd3 {[%clk 0:02:09]}  Ng5 {[%clk 0:02:23]} 21. Qg3 {[%clk 0:02:08]}  Nxh3+ {[%clk 0:01:40]} 22. Kh2 {[%clk 0:02:06]}  Qh5 {[%clk 0:00:49]} 23. Bxh3 {[%clk 0:02:04]}  Rf8 {[%clk 0:00:49]} 24. Kg2 {[%clk 0:01:57]}  Bxh3+ {[%clk 0:00:44]} 25. Qxh3 {[%clk 0:01:56]}  Qxh3+ {[%clk 0:00:45]} 26. Kxh3 {[%clk 0:01:57]}  Rf3+ {[%clk 0:00:45]} 27. Kg2 {[%clk 0:01:57]}  Raf8 {[%clk 0:00:46]} 28. Be3 {[%clk 0:01:52]}  g5 {[%clk 0:00:41]} 29. Ne2 {[%clk 0:01:50]}  g4 {[%clk 0:00:39]} 30. Ng3 {[%clk 0:01:49]}  a6 {[%clk 0:00:33]} 31. Rh1 {[%clk 0:01:47]} 1-0


[Site "https://www.chess.com"]

[Event "Titled Tuesday Blitz October 31 Early 2023"]
[White "Rustemov, Alexander"]
[Black "Ovetchkin, Roman"]
[WhiteFideId "4119002"]
[BlackFideId "4119991"]
[WhiteElo "2896"]
[BlackElo "2695"]
[Result "1/2-1/2"]
[Round "5"]
[TimeControl "180+1"]
[Date "2023.10.31"]
[WhiteClock "0:00:13"]
[BlackClock "0:00:21"]
[Board "24"]

1. d4 {[%clk 0:03:00]}  d5 {[%clk 0:02:53]} 2. c4 {[%clk 0:03:01]}  dxc4 {[%clk 0:02:53]} 3. Nf3 {[%clk 0:03:00]}  a6 {[%clk 0:02:53]} 4. e3 {[%clk 0:02:59]}  b5 {[%clk 0:02:53]} 5. a4 {[%clk 0:02:54]}  Bb7 {[%clk 0:02:53]} 6. b3 {[%clk 0:02:53]}  cxb3 {[%clk 0:02:49]} 7. axb5 {[%clk 0:02:38]}  axb5 {[%clk 0:02:48]} 8. Rxa8 {[%clk 0:02:29]}  Bxa8 {[%clk 0:02:49]} 9. Bxb5+ {[%clk 0:02:29]}  c6 {[%clk 0:02:49]} 10. Be2 {[%clk 0:02:24]}  e6 {[%clk 0:02:48]} 11. Qxb3 {[%clk 0:02:23]}  Nd7 {[%clk 0:02:49]} 12. O-O {[%clk 0:02:19]}  Ngf6 {[%clk 0:02:48]} 13. Nbd2 {[%clk 0:02:05]}  c5 {[%clk 0:02:40]} 14. Ba3 {[%clk 0:02:03]}  Bd5 {[%clk 0:02:30]} 15. Bc4 {[%clk 0:01:58]}  cxd4 {[%clk 0:02:24]} 16. Nxd4 {[%clk 0:01:54]}  Bxa3 {[%clk 0:02:20]} 17. Qxa3 {[%clk 0:01:54]}  Qe7 {[%clk 0:02:17]} 18. Qa7 {[%clk 0:01:41]}  O-O {[%clk 0:01:36]} 19. Bxd5 {[%clk 0:01:40]}  Nxd5 {[%clk 0:01:36]} 20. Rb1 {[%clk 0:01:40]}  Ne5 {[%clk 0:01:08]} 21. Rb7 {[%clk 0:01:29]}  Qh4 {[%clk 0:01:04]} 22. N2f3 {[%clk 0:01:25]}  Nxf3+ {[%clk 0:01:03]} 23. Nxf3 {[%clk 0:01:26]}  Qe4 {[%clk 0:01:00]} 24. h3 {[%clk 0:01:21]}  h6 {[%clk 0:01:00]} 25. Rb8 {[%clk 0:00:54]}  Rxb8 {[%clk 0:00:55]} 26. Qxb8+ {[%clk 0:00:54]}  Kh7 {[%clk 0:00:55]} 27. Qb7 {[%clk 0:00:54]}  Kg8 {[%clk 0:00:40]} 28. Qc8+ {[%clk 0:00:48]}  Kh7 {[%clk 0:00:40]} 29. Qe8 {[%clk 0:00:46]}  Qf5 {[%clk 0:00:35]} 30. Nd4 {[%clk 0:00:42]}  Qb1+ {[%clk 0:00:34]} 31. Kh2 {[%clk 0:00:42]}  Qb7 {[%clk 0:00:34]} 32. Nc6 {[%clk 0:00:22]}  Qc7+ {[%clk 0:00:32]} 33. Kg1 {[%clk 0:00:18]}  Nf6 {[%clk 0:00:29]} 34. Qa8 {[%clk 0:00:17]}  Ne4 {[%clk 0:00:24]} 35. Qa4 {[%clk 0:00:17]}  f5 {[%clk 0:00:23]} 36. Qc2 {[%clk 0:00:14]}  Qd6 {[%clk 0:00:21]} 37. Nd4 {[%clk 0:00:13]} 1/2-1/2


[Site "https://www.chess.com"]

[Event "Titled Tuesday Blitz October 31 Early 2023"]
[White "Sychev, Klementy"]
[Black "Rosen, Eric"]
[WhiteFideId "4114060"]
[BlackFideId "2032562"]
[WhiteElo "2828"]
[BlackElo "2677"]
[Result "1-0"]
[Round "5"]
[TimeControl "180+1"]
[Date "2023.10.31"]
[WhiteClock "0:00:11"]
[BlackClock "0:00:01"]
[Board "28"]

1. e4 {[%clk 0:03:00]}  c5 {[%clk 0:02:59]} 2. Nf3 {[%clk 0:03:01]}  e6 {[%clk 0:03:00]} 3. d4 {[%clk 0:03:00]}  cxd4 {[%clk 0:03:01]} 4. Nxd4 {[%clk 0:03:00]}  Nc6 {[%clk 0:03:02]} 5. Nc3 {[%clk 0:02:59]}  Qc7 {[%clk 0:03:02]} 6. Ndb5 {[%clk 0:03:00]}  Qb8 {[%clk 0:02:57]} 7. a4 {[%clk 0:03:00]}  a6 {[%clk 0:02:24]} 8. Na3 {[%clk 0:02:59]}  Na5 {[%clk 0:02:24]} 9. g3 {[%clk 0:02:47]}  b6 {[%clk 0:02:12]} 10. Bf4 {[%clk 0:02:44]}  d6 {[%clk 0:02:00]} 11. Qd2 {[%clk 0:02:39]}  Bb7 {[%clk 0:01:54]} 12. O-O-O {[%clk 0:02:37]}  e5 {[%clk 0:01:55]} 13. Bxe5 {[%clk 0:02:37]}  Nf6 {[%clk 0:01:44]} 14. Bxf6 {[%clk 0:02:20]}  gxf6 {[%clk 0:01:39]} 15. Nd5 {[%clk 0:02:21]}  Qd8 {[%clk 0:01:28]} 16. Bh3 {[%clk 0:01:45]}  Bc8 {[%clk 0:01:14]} 17. Bf5 {[%clk 0:01:32]}  Bg7 {[%clk 0:01:08]} 18. Ne3 {[%clk 0:01:02]}  O-O {[%clk 0:00:43]} 19. Qxd6 {[%clk 0:01:00]}  Qe8 {[%clk 0:00:44]} 20. Qxb6 {[%clk 0:00:35]}  Qxa4 {[%clk 0:00:43]} 21. Rd4 {[%clk 0:00:35]}  Qc6 {[%clk 0:00:23]} 22. Qxa5 {[%clk 0:00:34]}  Be6 {[%clk 0:00:24]} 23. Bxe6 {[%clk 0:00:26]}  fxe6 {[%clk 0:00:22]} 24. Rc4 {[%clk 0:00:26]}  Qe8 {[%clk 0:00:14]} 25. Rd1 {[%clk 0:00:25]}  Qg6 {[%clk 0:00:09]} 26. Qb6 {[%clk 0:00:23]}  f5 {[%clk 0:00:01]} 27. exf5 {[%clk 0:00:21]}  Qf6 {[%clk 0:00:02]} 28. Qxe6+ {[%clk 0:00:20]}  Kh8 {[%clk 0:00:02]} 29. Qxf6 {[%clk 0:00:20]}  Bxf6 {[%clk 0:00:03]} 30. Rc6 {[%clk 0:00:18]}  Rab8 {[%clk 0:00:03]} 31. Nac4 {[%clk 0:00:18]}  a5 {[%clk 0:00:04]} 32. Nd5 {[%clk 0:00:17]}  Bg7 {[%clk 0:00:02]} 33. f6 {[%clk 0:00:17]}  Bh6+ {[%clk 0:00:02]} 34. f4 {[%clk 0:00:18]}  a4 {[%clk 0:00:03]} 35. Ne5 {[%clk 0:00:18]}  a3 {[%clk 0:00:02]} 36. bxa3 {[%clk 0:00:19]}  Ra8 {[%clk 0:00:02]} 37. Rd3 {[%clk 0:00:19]}  Kg8 {[%clk 0:00:02]} 38. g4 {[%clk 0:00:19]}  Rfe8 {[%clk 0:00:01]} 39. g5 {[%clk 0:00:19]}  Bf8 {[%clk 0:00:02]} 40. f7+ {[%clk 0:00:18]}  Kh8 {[%clk 0:00:03]} 41. fxe8=Q {[%clk 0:00:19]}  Rxe8 {[%clk 0:00:02]} 42. Rc7 {[%clk 0:00:16]}  Bg7 {[%clk 0:00:01]} 43. Nf6 {[%clk 0:00:15]}  Rf8 {[%clk 0:00:01]} 44. Rd8 {[%clk 0:00:13]}  h6 {[%clk 0:00:01]} 45. Ng6# {[%clk 0:00:11]} 1-0


[Site "https://www.chess.com"]

[Event "Titled Tuesday Blitz October 31 Early 2023"]
[White "Sadykov, Ramil"]
[Black "Alexandre, Anne Shopie Elizabeth"]
[WhiteFideId "24113590"]
[BlackFideId "11902418"]
[WhiteElo "2677"]
[BlackElo "2815"]
[Result "0-1"]
[Round "5"]
[TimeControl "180+1"]
[Date "2023.10.31"]
[WhiteClock "0:00:03"]
[BlackClock "0:01:07"]
[Board "30"]

1. e4 {[%clk 0:02:54]}  c5 {[%clk 0:02:59]} 2. Nf3 {[%clk 0:02:52]}  d6 {[%clk 0:03:00]} 3. Bb5+ {[%clk 0:02:42]}  Nd7 {[%clk 0:02:59]} 4. c4 {[%clk 0:02:37]}  Nf6 {[%clk 0:02:56]} 5. Nc3 {[%clk 0:02:36]}  g6 {[%clk 0:02:53]} 6. d4 {[%clk 0:02:34]}  cxd4 {[%clk 0:02:53]} 7. Nxd4 {[%clk 0:02:35]}  Bg7 {[%clk 0:02:51]} 8. Be3 {[%clk 0:02:35]}  O-O {[%clk 0:02:51]} 9. Bxd7 {[%clk 0:02:33]}  Bxd7 {[%clk 0:02:51]} 10. f3 {[%clk 0:02:31]}  a6 {[%clk 0:02:51]} 11. a4 {[%clk 0:02:06]}  Rc8 {[%clk 0:02:44]} 12. Qd3 {[%clk 0:02:05]}  Bc6 {[%clk 0:02:40]} 13. a5 {[%clk 0:01:54]}  Nd7 {[%clk 0:02:34]} 14. O-O {[%clk 0:01:48]}  Ne5 {[%clk 0:02:33]} 15. Qe2 {[%clk 0:01:48]}  Bd7 {[%clk 0:02:33]} 16. b3 {[%clk 0:01:45]}  e6 {[%clk 0:02:33]} 17. Rfd1 {[%clk 0:01:37]}  Qe7 {[%clk 0:02:33]} 18. Rac1 {[%clk 0:01:32]}  Rfd8 {[%clk 0:02:31]} 19. Qd2 {[%clk 0:01:32]}  Be8 {[%clk 0:02:30]} 20. Bg5 {[%clk 0:01:29]}  Bf6 {[%clk 0:02:29]} 21. Bxf6 {[%clk 0:01:24]}  Qxf6 {[%clk 0:02:29]} 22. Nc2 {[%clk 0:01:22]}  Nc6 {[%clk 0:02:29]} 23. Na4 {[%clk 0:01:19]}  Ne5 {[%clk 0:02:23]} 24. Nb6 {[%clk 0:01:17]}  Rb8 {[%clk 0:02:24]} 25. Ne3 {[%clk 0:01:13]}  Qe7 {[%clk 0:02:20]} 26. Qf2 {[%clk 0:01:10]}  Nd7 {[%clk 0:02:13]} 27. Ng4 {[%clk 0:01:07]}  h5 {[%clk 0:02:08]} 28. Nxd7 {[%clk 0:01:04]}  Bxd7 {[%clk 0:02:08]} 29. Ne3 {[%clk 0:01:04]}  Be8 {[%clk 0:02:07]} 30. Rd4 {[%clk 0:01:03]}  Qc7 {[%clk 0:02:06]} 31. Qd2 {[%clk 0:01:02]}  b6 {[%clk 0:02:04]} 32. axb6 {[%clk 0:00:54]}  Qxb6 {[%clk 0:02:04]} 33. Rd3 {[%clk 0:00:54]}  a5 {[%clk 0:02:03]} 34. Rd1 {[%clk 0:00:50]}  Qc5 {[%clk 0:02:00]} 35. h3 {[%clk 0:00:45]}  Rb6 {[%clk 0:01:59]} 36. Kh1 {[%clk 0:00:44]}  Rdb8 {[%clk 0:01:59]} 37. Qc2 {[%clk 0:00:26]}  Rb4 {[%clk 0:01:52]} 38. Ra1 {[%clk 0:00:16]}  Ra8 {[%clk 0:01:37]} 39. Qd2 {[%clk 0:00:13]}  Ra6 {[%clk 0:01:34]} 40. Nc2 {[%clk 0:00:11]}  Rb8 {[%clk 0:01:32]} 41. Nd4 {[%clk 0:00:09]}  a4 {[%clk 0:01:28]} 42. bxa4 {[%clk 0:00:07]}  Rxa4 {[%clk 0:01:27]} 43. Rxa4 {[%clk 0:00:06]}  Bxa4 {[%clk 0:01:28]} 44. Nb5 {[%clk 0:00:07]}  Bxb5 {[%clk 0:01:25]} 45. cxb5 {[%clk 0:00:07]}  Rxb5 {[%clk 0:01:25]} 46. Rxd6 {[%clk 0:00:04]}  Rb1+ {[%clk 0:01:25]} 47. Kh2 {[%clk 0:00:04]}  Qe5+ {[%clk 0:01:20]} 48. f4 {[%clk 0:00:05]}  Qxe4 {[%clk 0:01:21]} 49. Rd8+ {[%clk 0:00:04]}  Kh7 {[%clk 0:01:21]} 50. Qd4 {[%clk 0:00:03]}  Qxd4 {[%clk 0:01:20]} 51. Rxd4 {[%clk 0:00:04]}  h4 {[%clk 0:01:14]} 52. Rd7 {[%clk 0:00:02]}  Kg7 {[%clk 0:01:14]} 53. Rd4 {[%clk 0:00:03]}  Rf1 {[%clk 0:01:13]} 54. Re4 {[%clk 0:00:02]}  Kf6 {[%clk 0:01:13]} 55. Rd4 {[%clk 0:00:01]}  Kf5 {[%clk 0:01:12]} 56. Rd7 {[%clk 0:00:01]}  f6 {[%clk 0:01:12]} 57. Rh7 {[%clk 0:00:02]}  Rxf4 {[%clk 0:01:12]} 58. g3 {[%clk 0:00:02]}  Rf2+ {[%clk 0:01:11]} 59. Kg1 {[%clk 0:00:02]}  hxg3 {[%clk 0:01:07]} 60. Rb7 {[%clk 0:00:03]} 0-1


[Site "https://www.chess.com"]